[Event "Titled Tuesday Blitz February 22 Early 2022"]
[White "Redzisz, Michal"]
[Black "Markelova, Lubov"]
[WhiteFideId "21816107"]
[BlackFideId "24131369"]
[WhiteElo "1961"]
[BlackElo "1820"]
[Result "1-0"]
[Round "06"]
[TimeControl "180+1"]
[Date "2022.02.22"]
[WhiteClock "0:00:45"]
[BlackClock "0:01:01"]

1. d4 {[%clk 0:03:00]}  d5 {[%clk 0:02:56]} 2. Nf3 {[%clk 0:02:59]}  Nf6 {[%clk 0:02:56]} 3. c4 {[%clk 0:03:00]}  c6 {[%clk 0:02:56]} 4. e3 {[%clk 0:02:59]}  Bf5 {[%clk 0:02:54]} 5. Nc3 {[%clk 0:02:59]}  e6 {[%clk 0:02:54]} 6. Bd3 {[%clk 0:02:59]}  Bxd3 {[%clk 0:02:54]} 7. Qxd3 {[%clk 0:03:00]}  Nbd7 {[%clk 0:02:52]} 8. O-O {[%clk 0:03:00]}  Be7 {[%clk 0:02:53]} 9. b3 {[%clk 0:03:00]}  O-O {[%clk 0:02:53]} 10. e4 {[%clk 0:02:59]}  dxe4 {[%clk 0:02:47]} 11. Nxe4 {[%clk 0:03:00]}  Nxe4 {[%clk 0:02:48]} 12. Qxe4 {[%clk 0:03:00]}  Nf6 {[%clk 0:02:48]} 13. Qe2 {[%clk 0:03:00]}  a5 {[%clk 0:02:49]} 14. a3 {[%clk 0:02:59]}  Qb8 {[%clk 0:02:44]} 15. Bb2 {[%clk 0:02:57]}  b5 {[%clk 0:02:43]} 16. Rfd1 {[%clk 0:02:51]}  a4 {[%clk 0:02:41]} 17. b4 {[%clk 0:02:49]}  bxc4 {[%clk 0:02:39]} 18. Qxc4 {[%clk 0:02:50]}  Qb5 {[%clk 0:02:40]} 19. Qc2 {[%clk 0:02:42]}  Nd5 {[%clk 0:02:38]} 20. Rac1 {[%clk 0:02:42]}  Rac8 {[%clk 0:02:37]} 21. Ne5 {[%clk 0:02:39]}  Bf6 {[%clk 0:02:27]} 22. Nxc6 {[%clk 0:02:05]}  Nf4 {[%clk 0:02:13]} 23. Qc4 {[%clk 0:01:03]}  Ne2+ {[%clk 0:02:07]} 24. Kf1 {[%clk 0:01:03]}  Qxc4 {[%clk 0:01:45]} 25. Rxc4 {[%clk 0:01:04]}  Nf4 {[%clk 0:01:38]} 26. g3 {[%clk 0:00:58]}  Nd5 {[%clk 0:01:37]} 27. Rdc1 {[%clk 0:00:57]}  g6 {[%clk 0:01:28]} 28. Ke2 {[%clk 0:00:56]}  Kg7 {[%clk 0:01:28]} 29. Ne5 {[%clk 0:00:54]}  Bxe5 {[%clk 0:01:16]} 30. Rxc8 {[%clk 0:00:51]}  Rxc8 {[%clk 0:01:10]} 31. Rxc8 {[%clk 0:00:52]}  Bf6 {[%clk 0:01:04]} 32. Kd3 {[%clk 0:00:49]}  h5 {[%clk 0:01:02]} 33. Ra8 {[%clk 0:00:46]}  Nb6 {[%clk 0:01:01]} 34. Ra6 {[%clk 0:00:45]} 1-0


[Site "https://www.chess.com"]

[Event "Titled Tuesday Blitz February 22 Early 2022"]
[White "Reprintsev, Alexander"]
[Black "Zaksaite, Salomeja"]
[WhiteFideId "14100541"]
[BlackFideId "12801496"]
[WhiteElo "2126"]
[BlackElo "2002"]
[Result "1-0"]
[Round "06"]
[TimeControl "180+1"]
[Date "2022.02.22"]
[WhiteClock "0:01:43"]
[BlackClock "0:00:16"]

1. e4 {[%clk 0:02:57]}  c5 {[%clk 0:02:59]} 2. b3 {[%clk 0:02:56]}  Nf6 {[%clk 0:02:58]} 3. e5 {[%clk 0:02:56]}  Nd5 {[%clk 0:02:58]} 4. Bb2 {[%clk 0:02:55]}  Nc6 {[%clk 0:02:57]} 5. Nf3 {[%clk 0:02:54]}  d6 {[%clk 0:02:54]} 6. Bb5 {[%clk 0:02:53]}  Bd7 {[%clk 0:02:48]} 7. exd6 {[%clk 0:02:53]}  exd6 {[%clk 0:02:48]} 8. O-O {[%clk 0:02:52]}  Qb6 {[%clk 0:02:37]} 9. c4 {[%clk 0:02:51]}  Ndb4 {[%clk 0:02:19]} 10. Re1+ {[%clk 0:02:46]}  Be6 {[%clk 0:02:18]} 11. d4 {[%clk 0:02:41]}  cxd4 {[%clk 0:02:17]} 12. Nxd4 {[%clk 0:02:40]}  O-O-O {[%clk 0:02:14]} 13. Nxe6 {[%clk 0:02:39]}  fxe6 {[%clk 0:02:13]} 14. Rxe6 {[%clk 0:02:38]}  d5 {[%clk 0:02:11]} 15. Nc3 {[%clk 0:02:28]}  dxc4 {[%clk 0:02:09]} 16. Qg4 {[%clk 0:02:28]}  Kb8 {[%clk 0:02:05]} 17. a3 {[%clk 0:02:23]}  Nc2 {[%clk 0:02:02]} 18. Bxc6 {[%clk 0:02:16]}  bxc6 {[%clk 0:01:51]} 19. Na4 {[%clk 0:02:04]}  Qxb3 {[%clk 0:01:36]} 20. Rb1 {[%clk 0:01:53]}  Nxa3 {[%clk 0:01:22]} 21. Be5+ {[%clk 0:01:51]}  Ka8 {[%clk 0:01:17]} 22. Rxb3 {[%clk 0:01:50]}  cxb3 {[%clk 0:01:17]} 23. Bc7 {[%clk 0:01:45]}  Rd7 {[%clk 0:00:16]} 24. Re8+ {[%clk 0:01:43]} 1-0


[Site "https://www.chess.com"]

[Event "Titled Tuesday Blitz February 22 Early 2022"]
[White "Rodchenkov, Vitaly"]
[Black "Guseva, Marina"]
[WhiteFideId "4152964"]
[BlackFideId "4149351"]
[WhiteElo "2337"]
[BlackElo "2232"]
[Result "1-0"]
[Round "06"]
[TimeControl "180+1"]
[Date "2022.02.22"]
[WhiteClock "0:00:47"]
[BlackClock "0:00:10"]

1. Nf3 {[%clk 0:03:00]}  d5 {[%clk 0:02:57]} 2. c4 {[%clk 0:03:00]}  c6 {[%clk 0:02:57]} 3. Qa4 {[%clk 0:02:59]}  a6 {[%clk 0:02:32]} 4. cxd5 {[%clk 0:02:58]}  b5 {[%clk 0:02:31]} 5. Qb3 {[%clk 0:02:56]}  cxd5 {[%clk 0:02:31]} 6. a4 {[%clk 0:02:51]}  bxa4 {[%clk 0:02:23]} 7. Qxa4+ {[%clk 0:02:51]}  Bd7 {[%clk 0:02:23]} 8. Qb3 {[%clk 0:02:48]}  Nf6 {[%clk 0:02:19]} 9. Nc3 {[%clk 0:02:47]}  e6 {[%clk 0:02:18]} 10. d4 {[%clk 0:02:41]}  Nc6 {[%clk 0:02:16]} 11. e3 {[%clk 0:02:34]}  a5 {[%clk 0:02:13]} 12. Bb5 {[%clk 0:02:26]}  Bb4 {[%clk 0:02:00]} 13. O-O {[%clk 0:02:25]}  O-O {[%clk 0:02:00]} 14. Bd2 {[%clk 0:02:20]}  Rb8 {[%clk 0:01:58]} 15. Qa4 {[%clk 0:02:18]}  Qb6 {[%clk 0:01:46]} 16. Bxc6 {[%clk 0:02:07]}  Bxc6 {[%clk 0:01:45]} 17. Qd1 {[%clk 0:02:05]}  Rfc8 {[%clk 0:01:29]} 18. Ne5 {[%clk 0:02:03]}  Be8 {[%clk 0:01:28]} 19. h3 {[%clk 0:01:57]}  h6 {[%clk 0:01:24]} 20. Qf3 {[%clk 0:01:51]}  Bd6 {[%clk 0:01:12]} 21. Ra2 {[%clk 0:01:43]}  Bxe5 {[%clk 0:00:35]} 22. dxe5 {[%clk 0:01:41]}  Nd7 {[%clk 0:00:35]} 23. Qg3 {[%clk 0:01:39]}  Qc7 {[%clk 0:00:33]} 24. f4 {[%clk 0:01:34]}  Nc5 {[%clk 0:00:32]} 25. f5 {[%clk 0:01:26]}  exf5 {[%clk 0:00:30]} 26. Rxf5 {[%clk 0:01:25]}  Qd7 {[%clk 0:00:29]} 27. e4 {[%clk 0:01:22]}  dxe4 {[%clk 0:00:25]} 28. Bxh6 {[%clk 0:01:21]}  g6 {[%clk 0:00:25]} 29. Rf6 {[%clk 0:01:15]}  Rc6 {[%clk 0:00:24]} 30. Rxc6 {[%clk 0:01:04]}  Qxc6 {[%clk 0:00:23]} 31. Rxa5 {[%clk 0:01:05]}  Rxb2 {[%clk 0:00:21]} 32. Kh2 {[%clk 0:01:01]}  e3 {[%clk 0:00:19]} 33. Rxc5 {[%clk 0:00:57]}  Qxc5 {[%clk 0:00:17]} 34. Ne4 {[%clk 0:00:57]}  Qc2 {[%clk 0:00:15]} 35. Nf6+ {[%clk 0:00:54]}  Kh8 {[%clk 0:00:15]} 36. Bxe3 {[%clk 0:00:53]}  Kg7 {[%clk 0:00:12]} 37. Qg5 {[%clk 0:00:49]}  Bc6 {[%clk 0:00:10]} 38. Qh6# {[%clk 0:00:47]} 1-0


[Site "https://www.chess.com"]

[Event "Titled Tuesday Blitz February 22 Early 2022"]
[White "Rudykh, Stepan"]
[Black "Barbashin, Igor"]
[WhiteFideId "4180321"]
[BlackFideId "4155718"]
[WhiteElo "2129"]
[BlackElo "2138"]
[Result "0-1"]
[Round "06"]
[TimeControl "180+1"]
[Date "2022.02.22"]
[WhiteClock "0:00:20"]
[BlackClock "0:01:30"]

1. e4 {[%clk 0:03:00]}  d5 {[%clk 0:02:55]} 2. exd5 {[%clk 0:03:00]}  Nf6 {[%clk 0:02:55]} 3. Nf3 {[%clk 0:03:00]}  Nxd5 {[%clk 0:02:54]} 4. d4 {[%clk 0:03:00]}  g6 {[%clk 0:02:53]} 5. c4 {[%clk 0:03:00]}  Nb6 {[%clk 0:02:52]} 6. Nc3 {[%clk 0:02:59]}  Bg7 {[%clk 0:02:52]} 7. h3 {[%clk 0:02:51]}  O-O {[%clk 0:02:51]} 8. Be3 {[%clk 0:02:48]}  Nc6 {[%clk 0:02:51]} 9. Be2 {[%clk 0:02:36]}  e5 {[%clk 0:02:50]} 10. d5 {[%clk 0:02:34]}  Ne7 {[%clk 0:02:50]} 11. a4 {[%clk 0:02:10]}  Nf5 {[%clk 0:02:47]} 12. Bc5 {[%clk 0:02:03]}  Re8 {[%clk 0:02:46]} 13. a5 {[%clk 0:01:49]}  Nd7 {[%clk 0:02:45]} 14. Ba3 {[%clk 0:01:48]}  e4 {[%clk 0:02:45]} 15. Nh2 {[%clk 0:01:42]}  Nd4 {[%clk 0:02:35]} 16. O-O {[%clk 0:01:30]}  f5 {[%clk 0:02:28]} 17. c5 {[%clk 0:01:17]}  Qg5 {[%clk 0:02:08]} 18. Bc4 {[%clk 0:01:09]}  Kh8 {[%clk 0:01:57]} 19. b4 {[%clk 0:00:51]}  f4 {[%clk 0:01:54]} 20. Ne2 {[%clk 0:00:43]}  Nf3+ {[%clk 0:01:48]} 21. Nxf3 {[%clk 0:00:41]}  exf3 {[%clk 0:01:48]} 22. Nxf4 {[%clk 0:00:33]}  Qxf4 {[%clk 0:01:47]} 23. Qc2 {[%clk 0:00:22]}  fxg2 {[%clk 0:01:45]} 24. Rfe1 {[%clk 0:00:20]}  Ne5 {[%clk 0:01:45]} 25. Bb2 {[%clk 0:00:20]}  Nf3+ {[%clk 0:01:31]} 26. Kxg2 {[%clk 0:00:19]}  Nxe1+ {[%clk 0:01:31]} 27. Rxe1 {[%clk 0:00:19]}  Rxe1 {[%clk 0:01:31]} 28. Bxg7+ {[%clk 0:00:19]}  Kxg7 {[%clk 0:01:30]} 29. Qc3+ {[%clk 0:00:20]}  Qe5 {[%clk 0:01:30]} 0-1


[Site "https://www.chess.com"]

[Event "Titled Tuesday Blitz February 22 Early 2022"]
[White "Sahin, Handenur"]
[Black "Tomiello, Mateus Costamilan"]
[WhiteFideId "6334865"]
[BlackFideId "22701958"]
[WhiteElo "2126"]
[BlackElo "1975"]
[Result "0-1"]
[Round "06"]
[TimeControl "180+1"]
[Date "2022.02.22"]
[WhiteClock "0:00:12"]
[BlackClock "0:00:09"]

1. e4 {[%clk 0:03:00]}  c5 {[%clk 0:02:59]} 2. c3 {[%clk 0:03:00]}  Nc6 {[%clk 0:02:58]} 3. d4 {[%clk 0:02:58]}  cxd4 {[%clk 0:02:58]} 4. cxd4 {[%clk 0:02:58]}  d5 {[%clk 0:02:59]} 5. exd5 {[%clk 0:02:54]}  Qxd5 {[%clk 0:02:58]} 6. Nf3 {[%clk 0:02:55]}  e6 {[%clk 0:02:54]} 7. Nc3 {[%clk 0:02:54]}  Qd6 {[%clk 0:02:55]} 8. Bc4 {[%clk 0:02:49]}  Nf6 {[%clk 0:02:53]} 9. O-O {[%clk 0:02:47]}  Be7 {[%clk 0:02:53]} 10. Qe2 {[%clk 0:02:40]}  O-O {[%clk 0:02:53]} 11. Rd1 {[%clk 0:02:40]}  b6 {[%clk 0:02:48]} 12. Nb5 {[%clk 0:02:31]}  Qb8 {[%clk 0:02:37]} 13. Ne5 {[%clk 0:02:29]}  Bb7 {[%clk 0:02:33]} 14. Bg5 {[%clk 0:02:26]}  Rd8 {[%clk 0:02:27]} 15. Nxf7 {[%clk 0:02:18]}  Kxf7 {[%clk 0:01:10]} 16. Qxe6+ {[%clk 0:02:17]}  Kg6 {[%clk 0:01:10]} 17. d5 {[%clk 0:02:14]}  Qe5 {[%clk 0:00:54]} 18. Bd3+ {[%clk 0:01:56]}  Kxg5 {[%clk 0:00:50]} 19. h4+ {[%clk 0:01:42]}  Kh6 {[%clk 0:00:44]} 20. Qf7 {[%clk 0:01:23]}  Rxd5 {[%clk 0:00:37]} 21. Re1 {[%clk 0:01:16]}  Qh5 {[%clk 0:00:26]} 22. Qxh5+ {[%clk 0:00:57]}  Kxh5 {[%clk 0:00:22]} 23. Be2+ {[%clk 0:00:52]}  Kxh4 {[%clk 0:00:20]} 24. Nc7 {[%clk 0:00:52]}  Rg5 {[%clk 0:00:18]} 25. Kh2 {[%clk 0:00:48]}  Bd6+ {[%clk 0:00:16]} 26. g3+ {[%clk 0:00:47]}  Rxg3 {[%clk 0:00:17]} 27. fxg3+ {[%clk 0:00:46]}  Bxg3+ {[%clk 0:00:18]} 28. Kg2 {[%clk 0:00:47]}  Nd4+ {[%clk 0:00:16]} 29. Kf1 {[%clk 0:00:42]}  Bxc7 {[%clk 0:00:15]} 30. Rad1 {[%clk 0:00:35]}  Rd8 {[%clk 0:00:13]} 31. Bd3 {[%clk 0:00:30]}  Ng4 {[%clk 0:00:10]} 32. Re7 {[%clk 0:00:26]}  Bh2 {[%clk 0:00:10]} 33. Rd2 {[%clk 0:00:21]}  Nf3 {[%clk 0:00:09]} 34. Rd1 {[%clk 0:00:14]}  Rxd3 {[%clk 0:00:09]} 35. Rxd3 {[%clk 0:00:13]}  Ba6 {[%clk 0:00:10]} 36. Rd7 {[%clk 0:00:13]}  Nfe5 {[%clk 0:00:10]} 37. Ke2 {[%clk 0:00:12]}  Nxd7 {[%clk 0:00:09]} 0-1


[Site "https://www.chess.com"]

[Event "Titled Tuesday Blitz February 22 Early 2022"]
[White "Sailer, Mike"]
[Black "Krylov, Ivan"]
[WhiteFideId "2012901"]
[BlackFideId "24128066"]
[WhiteElo "2109"]
[BlackElo "2258"]
[Result "1-0"]
[Round "06"]
[TimeControl "180+1"]
[Date "2022.02.22"]
[WhiteClock "0:00:54"]
[BlackClock "0:00:57"]

1. d4 {[%clk 0:02:59]}  d5 {[%clk 0:02:59]} 2. Nf3 {[%clk 0:02:59]}  Nf6 {[%clk 0:03:00]} 3. Bf4 {[%clk 0:02:59]}  c5 {[%clk 0:03:00]} 4. e3 {[%clk 0:02:59]}  Nc6 {[%clk 0:03:00]} 5. Nc3 {[%clk 0:02:56]}  Qb6 {[%clk 0:03:00]} 6. Nb5 {[%clk 0:02:55]}  Kd8 {[%clk 0:02:39]} 7. Bc7+ {[%clk 0:02:53]}  Qxc7 {[%clk 0:02:39]} 8. Nxc7 {[%clk 0:02:53]}  Kxc7 {[%clk 0:02:39]} 9. Ne5 {[%clk 0:02:51]}  Nxe5 {[%clk 0:02:36]} 10. dxe5 {[%clk 0:02:51]}  Nd7 {[%clk 0:02:35]} 11. Qxd5 {[%clk 0:02:46]}  e6 {[%clk 0:02:32]} 12. Qe4 {[%clk 0:02:44]}  Nb6 {[%clk 0:02:29]} 13. O-O-O {[%clk 0:02:42]}  Bd7 {[%clk 0:02:28]} 14. Qf4 {[%clk 0:02:22]}  Be8 {[%clk 0:02:26]} 15. Be2 {[%clk 0:02:12]}  Be7 {[%clk 0:02:24]} 16. Bf3 {[%clk 0:02:08]}  g5 {[%clk 0:02:22]} 17. Qg3 {[%clk 0:02:06]}  h5 {[%clk 0:02:20]} 18. h3 {[%clk 0:02:04]}  Bb5 {[%clk 0:02:04]} 19. Be4 {[%clk 0:01:50]}  Rad8 {[%clk 0:01:58]} 20. Rxd8 {[%clk 0:01:49]}  Rxd8 {[%clk 0:01:59]} 21. Rd1 {[%clk 0:01:43]}  Nd5 {[%clk 0:01:49]} 22. Qf3 {[%clk 0:01:29]}  g4 {[%clk 0:01:29]} 23. hxg4 {[%clk 0:01:26]}  hxg4 {[%clk 0:01:29]} 24. Qxf7 {[%clk 0:01:18]}  Rf8 {[%clk 0:01:21]} 25. Qxe6 {[%clk 0:01:12]}  Rxf2 {[%clk 0:01:04]} 26. Bxd5 {[%clk 0:01:00]}  Bg5 {[%clk 0:01:01]} 27. Qd6+ {[%clk 0:00:54]}  Kc8 {[%clk 0:01:00]} 28. Be6+ {[%clk 0:00:54]}  Bd7 {[%clk 0:00:58]} 29. Qxd7+ {[%clk 0:00:53]}  Kb8 {[%clk 0:00:57]} 30. Qc8# {[%clk 0:00:54]} 1-0


[Site "https://www.chess.com"]

[Event "Titled Tuesday Blitz February 22 Early 2022"]
[White "Samunenkov, Ihor"]
[Black "Janaszak, Dawid"]
[WhiteFideId "14187086"]
[BlackFideId "1119206"]
[WhiteElo "2406"]
[BlackElo "2199"]
[Result "1-0"]
[Round "06"]
[TimeControl "180+1"]
[Date "2022.02.22"]
[WhiteClock "0:00:17"]
[BlackClock "0:00:58"]

1. e4 {[%clk 0:03:00]}  c5 {[%clk 0:02:59]} 2. Nf3 {[%clk 0:03:00]}  Nc6 {[%clk 0:03:00]} 3. d4 {[%clk 0:03:00]}  cxd4 {[%clk 0:03:01]} 4. Nxd4 {[%clk 0:03:01]}  g6 {[%clk 0:03:01]} 5. c4 {[%clk 0:02:59]}  Bg7 {[%clk 0:03:01]} 6. Be3 {[%clk 0:02:59]}  Qb6 {[%clk 0:03:02]} 7. Nb3 {[%clk 0:02:53]}  Qd8 {[%clk 0:03:01]} 8. Nc3 {[%clk 0:02:52]}  Nf6 {[%clk 0:02:56]} 9. Nd4 {[%clk 0:02:45]}  O-O {[%clk 0:02:53]} 10. Be2 {[%clk 0:02:45]}  b6 {[%clk 0:02:52]} 11. O-O {[%clk 0:02:31]}  Bb7 {[%clk 0:02:51]} 12. f3 {[%clk 0:02:21]}  Qb8 {[%clk 0:02:51]} 13. Rc1 {[%clk 0:02:17]}  e6 {[%clk 0:02:46]} 14. Ndb5 {[%clk 0:02:10]}  d5 {[%clk 0:02:36]} 15. cxd5 {[%clk 0:02:06]}  exd5 {[%clk 0:02:37]} 16. exd5 {[%clk 0:01:55]}  Nb4 {[%clk 0:02:36]} 17. d6 {[%clk 0:01:38]}  Rd8 {[%clk 0:02:23]} 18. Nc7 {[%clk 0:01:28]}  Ne8 {[%clk 0:02:16]} 19. Nxa8 {[%clk 0:01:25]}  Qxa8 {[%clk 0:01:57]} 20. a3 {[%clk 0:01:20]}  Rxd6 {[%clk 0:01:55]} 21. Qb3 {[%clk 0:01:20]}  Nc6 {[%clk 0:01:55]} 22. Ne4 {[%clk 0:00:59]}  Nd4 {[%clk 0:01:48]} 23. Bxd4 {[%clk 0:00:59]}  Bxd4+ {[%clk 0:01:47]} 24. Kh1 {[%clk 0:01:00]}  Rd7 {[%clk 0:01:21]} 25. Bb5 {[%clk 0:00:43]}  Re7 {[%clk 0:01:17]} 26. Bxe8 {[%clk 0:00:43]}  Bxe4 {[%clk 0:01:16]} 27. Bxf7+ {[%clk 0:00:39]}  Kg7 {[%clk 0:01:15]} 28. fxe4 {[%clk 0:00:40]}  Qxe4 {[%clk 0:01:15]} 29. Bd5 {[%clk 0:00:35]}  Qh4 {[%clk 0:01:14]} 30. Qg3 {[%clk 0:00:31]}  Qh5 {[%clk 0:01:12]} 31. Bf3 {[%clk 0:00:30]}  Qb5 {[%clk 0:01:09]} 32. Qd6 {[%clk 0:00:29]}  Bc5 {[%clk 0:01:08]} 33. Qd2 {[%clk 0:00:25]}  Qa4 {[%clk 0:01:01]} 34. Rce1 {[%clk 0:00:24]}  Rf7 {[%clk 0:01:00]} 35. Bd5 {[%clk 0:00:21]}  Rd7 {[%clk 0:01:00]} 36. Qc3+ {[%clk 0:00:20]}  Bd4 {[%clk 0:01:01]} 37. Qc6 {[%clk 0:00:19]}  Qxc6 {[%clk 0:00:57]} 38. Bxc6 {[%clk 0:00:20]}  Rc7 {[%clk 0:00:58]} 39. Bd5 {[%clk 0:00:17]}  Bxb2 {[%clk 0:00:58]} 40. a4 {[%clk 0:00:17]}  Bc3 {[%clk 0:00:58]} 41. Rc1 {[%clk 0:00:17]}  a6 {[%clk 0:00:58]} 42. Rf3 {[%clk 0:00:17]} 1-0


[Site "https://www.chess.com"]

[Event "Titled Tuesday Blitz February 22 Early 2022"]
[White "Sanchez, Robert"]
[Black "Kornyukov, Alexey"]
[WhiteFideId "2034360"]
[BlackFideId "4150457"]
[WhiteElo "2259"]
[BlackElo "2303"]
[Result "1-0"]
[Round "06"]
[TimeControl "180+1"]
[Date "2022.02.22"]
[WhiteClock "0:02:39"]
[BlackClock "0:02:21"]

1. e4 {[%clk 0:03:00]}  c5 {[%clk 0:02:57]} 2. Nf3 {[%clk 0:03:00]}  Nc6 {[%clk 0:02:56]} 3. d4 {[%clk 0:03:00]}  cxd4 {[%clk 0:02:55]} 4. Nxd4 {[%clk 0:03:00]}  e5 {[%clk 0:02:53]} 5. Nb5 {[%clk 0:03:00]}  a6 {[%clk 0:02:51]} 6. N5c3 {[%clk 0:02:59]}  Nf6 {[%clk 0:02:50]} 7. Bc4 {[%clk 0:02:57]}  Bb4 {[%clk 0:02:46]} 8. O-O {[%clk 0:02:57]}  O-O {[%clk 0:02:44]} 9. Bg5 {[%clk 0:02:57]}  h6 {[%clk 0:02:41]} 10. Bxf6 {[%clk 0:02:57]}  Qxf6 {[%clk 0:02:40]} 11. Nd5 {[%clk 0:02:58]}  Qg6 {[%clk 0:02:36]} 12. a3 {[%clk 0:02:50]}  Bc5 {[%clk 0:02:31]} 13. b4 {[%clk 0:02:48]}  Ba7 {[%clk 0:02:27]} 14. a4 {[%clk 0:02:39]}  Nd4 {[%clk 0:02:21]} 15. Ne7+ {[%clk 0:02:39]} 1-0


[Site "https://www.chess.com"]

[Event "Titled Tuesday Blitz February 22 Early 2022"]
[White "Sarkar, Justin"]
[Black "Piliczewski, Bogusz"]
[WhiteFideId "2010011"]
[BlackFideId "1104144"]
[WhiteElo "2038"]
[BlackElo "1896"]
[Result "1-0"]
[Round "06"]
[TimeControl "180+1"]
[Date "2022.02.22"]
[WhiteClock "0:00:05"]
[BlackClock "0:00:03"]

1. d4 {[%clk 0:02:34]}  d5 {[%clk 0:02:58]} 2. c4 {[%clk 0:02:31]}  c6 {[%clk 0:02:57]} 3. Nf3 {[%clk 0:02:25]}  Nf6 {[%clk 0:02:57]} 4. Nc3 {[%clk 0:02:21]}  e6 {[%clk 0:02:57]} 5. g3 {[%clk 0:02:15]}  Nbd7 {[%clk 0:02:56]} 6. Bg2 {[%clk 0:02:12]}  Bd6 {[%clk 0:02:56]} 7. O-O {[%clk 0:02:09]}  O-O {[%clk 0:02:56]} 8. Nd2 {[%clk 0:02:06]}  a6 {[%clk 0:02:48]} 9. e4 {[%clk 0:02:05]}  dxe4 {[%clk 0:02:45]} 10. Ndxe4 {[%clk 0:02:05]}  Nxe4 {[%clk 0:02:46]} 11. Nxe4 {[%clk 0:02:05]}  Be7 {[%clk 0:02:46]} 12. d5 {[%clk 0:01:58]}  Ne5 {[%clk 0:02:21]} 13. d6 {[%clk 0:01:51]}  Bf6 {[%clk 0:02:20]} 14. c5 {[%clk 0:01:45]}  Bd7 {[%clk 0:02:12]} 15. Nxf6+ {[%clk 0:01:35]}  Qxf6 {[%clk 0:02:11]} 16. Qc2 {[%clk 0:01:31]}  Rfd8 {[%clk 0:02:00]} 17. Bd2 {[%clk 0:01:27]}  Qg6 {[%clk 0:01:44]} 18. Qxg6 {[%clk 0:01:14]}  hxg6 {[%clk 0:01:42]} 19. Ba5 {[%clk 0:01:08]}  Rdc8 {[%clk 0:01:38]} 20. b3 {[%clk 0:01:07]}  Be8 {[%clk 0:01:33]} 21. Rac1 {[%clk 0:00:58]}  Nd7 {[%clk 0:01:24]} 22. Bc7 {[%clk 0:00:54]}  Nf6 {[%clk 0:01:24]} 23. b4 {[%clk 0:00:38]}  Nd5 {[%clk 0:01:24]} 24. Ba5 {[%clk 0:00:36]}  Rab8 {[%clk 0:01:20]} 25. Rfd1 {[%clk 0:00:21]}  Bd7 {[%clk 0:01:14]} 26. a4 {[%clk 0:00:17]}  b6 {[%clk 0:01:06]} 27. cxb6 {[%clk 0:00:16]}  Nxb6 {[%clk 0:01:05]} 28. Bxb6 {[%clk 0:00:12]}  Rxb6 {[%clk 0:01:05]} 29. Rd4 {[%clk 0:00:08]}  Rcb8 {[%clk 0:00:51]} 30. a5 {[%clk 0:00:06]}  Rxb4 {[%clk 0:00:51]} 31. Rxb4 {[%clk 0:00:07]}  Rxb4 {[%clk 0:00:51]} 32. Bxc6 {[%clk 0:00:07]}  Bxc6 {[%clk 0:00:33]} 33. Rxc6 {[%clk 0:00:08]}  Rb7 {[%clk 0:00:20]} 34. Rxa6 {[%clk 0:00:06]}  f5 {[%clk 0:00:19]} 35. Rb6 {[%clk 0:00:05]}  Rd7 {[%clk 0:00:18]} 36. a6 {[%clk 0:00:05]}  Kh7 {[%clk 0:00:16]} 37. f4 {[%clk 0:00:04]}  Kh6 {[%clk 0:00:15]} 38. Kf2 {[%clk 0:00:04]}  g5 {[%clk 0:00:14]} 39. Ke3 {[%clk 0:00:05]}  Kg6 {[%clk 0:00:11]} 40. Kd4 {[%clk 0:00:04]}  Kf6 {[%clk 0:00:11]} 41. Kc5 {[%clk 0:00:05]}  e5 {[%clk 0:00:09]} 42. fxe5+ {[%clk 0:00:05]}  Kxe5 {[%clk 0:00:09]} 43. Rc6 {[%clk 0:00:04]}  f4 {[%clk 0:00:06]} 44. gxf4+ {[%clk 0:00:03]}  gxf4 {[%clk 0:00:06]} 45. Rc7 {[%clk 0:00:04]}  Rxd6 {[%clk 0:00:05]} 46. Re7+ {[%clk 0:00:04]}  Re6 {[%clk 0:00:05]} 47. Rxe6+ {[%clk 0:00:04]}  Kxe6 {[%clk 0:00:05]} 48. a7 {[%clk 0:00:04]}  f3 {[%clk 0:00:04]} 49. a8=Q {[%clk 0:00:05]}  f2 {[%clk 0:00:03]} 50. Qf3 {[%clk 0:00:05]} 1-0


[Site "https://www.chess.com"]